[Event "Titled Tuesday Blitz January 17 Early 2023"]
[White "Borges Feria, Yasel"]
[Black "Reprintsev, Alexander"]
[WhiteFideId "3504921"]
[BlackFideId "14100541"]
[WhiteElo "2439"]
[BlackElo "2253"]
[Result "1-0"]
[Round "04"]
[TimeControl "180+2"]
[Date "2023.01.17"]
[WhiteClock "0:00:10"]
[BlackClock "0:01:00"]

1. d4 {[%clk 0:03:00]}  d5 {[%clk 0:02:59]} 2. c4 {[%clk 0:03:00]}  e5 {[%clk 0:02:59]} 3. dxe5 {[%clk 0:02:59]}  d4 {[%clk 0:02:57]} 4. Nf3 {[%clk 0:02:55]}  Nc6 {[%clk 0:02:58]} 5. Bf4 {[%clk 0:02:55]}  Nge7 {[%clk 0:02:57]} 6. Bg3 {[%clk 0:02:55]}  Ng6 {[%clk 0:02:56]} 7. a3 {[%clk 0:02:48]}  h5 {[%clk 0:02:56]} 8. h4 {[%clk 0:02:47]}  a5 {[%clk 0:02:56]} 9. e3 {[%clk 0:02:42]}  dxe3 {[%clk 0:02:54]} 10. Qxd8+ {[%clk 0:02:42]}  Nxd8 {[%clk 0:02:53]} 11. fxe3 {[%clk 0:02:43]}  Bc5 {[%clk 0:02:47]} 12. Nc3 {[%clk 0:02:42]}  Bxe3 {[%clk 0:02:44]} 13. Nd5 {[%clk 0:02:43]}  Bb6 {[%clk 0:02:38]} 14. c5 {[%clk 0:02:43]}  Be6 {[%clk 0:02:37]} 15. Bb5+ {[%clk 0:02:23]}  Kf8 {[%clk 0:02:24]} 16. Nxb6 {[%clk 0:01:52]}  cxb6 {[%clk 0:02:23]} 17. cxb6 {[%clk 0:01:53]}  Bd5 {[%clk 0:02:08]} 18. O-O-O {[%clk 0:01:43]}  Ne7 {[%clk 0:02:08]} 19. Rhf1 {[%clk 0:01:29]}  Rh6 {[%clk 0:02:03]} 20. Bf2 {[%clk 0:01:23]}  Re6 {[%clk 0:01:43]} 21. Rfe1 {[%clk 0:00:46]}  Ndc6 {[%clk 0:01:42]} 22. Nd4 {[%clk 0:00:35]}  Nxd4 {[%clk 0:01:40]} 23. Bxd4 {[%clk 0:00:36]}  Bxg2 {[%clk 0:01:34]} 24. Kb1 {[%clk 0:00:33]}  Nf5 {[%clk 0:01:23]} 25. Bc5+ {[%clk 0:00:32]}  Kg8 {[%clk 0:01:22]} 26. Rd7 {[%clk 0:00:30]}  Bc6 {[%clk 0:01:18]} 27. Bxc6 {[%clk 0:00:30]}  Rxc6 {[%clk 0:01:18]} 28. b4 {[%clk 0:00:21]}  axb4 {[%clk 0:01:18]} 29. axb4 {[%clk 0:00:22]}  Rb8 {[%clk 0:01:17]} 30. Rf1 {[%clk 0:00:21]}  Nh6 {[%clk 0:01:17]} 31. Rfd1 {[%clk 0:00:17]}  Kh7 {[%clk 0:01:15]} 32. Rd8 {[%clk 0:00:17]}  Rcc8 {[%clk 0:01:15]} 33. Rxc8 {[%clk 0:00:16]}  Rxc8 {[%clk 0:01:15]} 34. Rd7 {[%clk 0:00:17]}  Nf5 {[%clk 0:01:09]} 35. Rxb7 {[%clk 0:00:17]}  Nxh4 {[%clk 0:01:09]} 36. Rxf7 {[%clk 0:00:17]}  Ng6 {[%clk 0:01:09]} 37. e6 {[%clk 0:00:16]}  Ne5 {[%clk 0:01:05]} 38. b7 {[%clk 0:00:16]}  Rb8 {[%clk 0:01:04]} 39. Bd6 {[%clk 0:00:15]}  Rxb7 {[%clk 0:01:01]} 40. Rxb7 {[%clk 0:00:14]}  Nc4 {[%clk 0:01:01]} 41. Rd7 {[%clk 0:00:10]}  h4 {[%clk 0:01:00]} 42. e7 {[%clk 0:00:10]} 1-0


[Site "https://www.chess.com"]

[Event "Titled Tuesday Blitz January 17 Early 2023"]
[White "Aradhya, Garg"]
[Black "Womacka, Mathias"]
[WhiteFideId "25006746"]
[BlackFideId "4611390"]
[WhiteElo "2284"]
[BlackElo "2396"]
[Result "1-0"]
[Round "04"]
[TimeControl "180+2"]
[Date "2023.01.17"]
[WhiteClock "0:00:36"]
[BlackClock "0:00:45"]

1. d4 {[%clk 0:03:00]}  Nf6 {[%clk 0:02:59]} 2. Nf3 {[%clk 0:03:00]}  e6 {[%clk 0:02:59]} 3. Bg5 {[%clk 0:02:59]}  c5 {[%clk 0:02:58]} 4. e3 {[%clk 0:02:58]}  Qb6 {[%clk 0:02:57]} 5. Nc3 {[%clk 0:02:57]}  Qxb2 {[%clk 0:02:28]} 6. Nb5 {[%clk 0:02:55]}  Qb4+ {[%clk 0:02:28]} 7. Nd2 {[%clk 0:02:37]}  Qa5 {[%clk 0:02:20]} 8. c3 {[%clk 0:02:37]}  d5 {[%clk 0:02:11]} 9. Nb3 {[%clk 0:01:57]}  Qd8 {[%clk 0:01:54]} 10. dxc5 {[%clk 0:01:51]}  Na6 {[%clk 0:01:46]} 11. Qd4 {[%clk 0:01:49]}  Bd7 {[%clk 0:01:40]} 12. Rd1 {[%clk 0:01:40]}  Rc8 {[%clk 0:01:39]} 13. Nxa7 {[%clk 0:01:37]}  Bxc5 {[%clk 0:01:38]} 14. Nxc5 {[%clk 0:01:36]}  Rxc5 {[%clk 0:01:37]} 15. Bxa6 {[%clk 0:01:37]}  Qa5 {[%clk 0:01:26]} 16. Bxf6 {[%clk 0:00:44]}  gxf6 {[%clk 0:01:27]} 17. Bb5 {[%clk 0:00:43]}  Qxa7 {[%clk 0:01:23]} 18. Bxd7+ {[%clk 0:00:42]}  Kxd7 {[%clk 0:01:23]} 19. Qxf6 {[%clk 0:00:42]}  Rf8 {[%clk 0:01:19]} 20. O-O {[%clk 0:00:42]}  Qxa2 {[%clk 0:01:12]} 21. e4 {[%clk 0:00:38]}  Qc4 {[%clk 0:00:56]} 22. Rd4 {[%clk 0:00:37]}  Qxc3 {[%clk 0:00:55]} 23. exd5 {[%clk 0:00:37]}  exd5 {[%clk 0:00:45]} 24. Rxd5+ {[%clk 0:00:37]}  Kc8 {[%clk 0:00:45]} 25. Qf5+ {[%clk 0:00:36]} 1-0


[Site "https://www.chess.com"]

[Event "Titled Tuesday Blitz January 17 Early 2023"]
[White "Boder, Jan"]
[Black "Sadubayev, Airat"]
[WhiteFideId "16243226"]
[BlackFideId "13713264"]
[WhiteElo "2294"]
[BlackElo "2320"]
[Result "1/2-1/2"]
[Round "04"]
[TimeControl "180+2"]
[Date "2023.01.17"]
[WhiteClock "0:00:03"]
[BlackClock "0:00:10"]

1. c4 {[%clk 0:03:00]}  c6 {[%clk 0:02:59]} 2. g3 {[%clk 0:03:01]}  d5 {[%clk 0:02:59]} 3. Nf3 {[%clk 0:03:01]}  Nf6 {[%clk 0:02:58]} 4. Bg2 {[%clk 0:03:02]}  dxc4 {[%clk 0:02:56]} 5. O-O {[%clk 0:03:01]}  Nbd7 {[%clk 0:02:53]} 6. a4 {[%clk 0:02:59]}  a5 {[%clk 0:02:51]} 7. b3 {[%clk 0:02:43]}  cxb3 {[%clk 0:02:44]} 8. Qxb3 {[%clk 0:02:44]}  e6 {[%clk 0:02:26]} 9. d4 {[%clk 0:02:42]}  Be7 {[%clk 0:02:23]} 10. Nc3 {[%clk 0:02:34]}  c5 {[%clk 0:02:16]} 11. Rd1 {[%clk 0:02:32]}  O-O {[%clk 0:02:13]} 12. Ba3 {[%clk 0:02:27]}  cxd4 {[%clk 0:02:02]} 13. Rxd4 {[%clk 0:02:13]}  Bxa3 {[%clk 0:01:59]} 14. Qxa3 {[%clk 0:02:07]}  Qb6 {[%clk 0:01:52]} 15. Rad1 {[%clk 0:01:31]}  Re8 {[%clk 0:01:21]} 16. Nb5 {[%clk 0:01:28]}  Nd5 {[%clk 0:01:06]} 17. e4 {[%clk 0:01:27]}  Nb4 {[%clk 0:01:05]} 18. Rxd7 {[%clk 0:01:07]}  Bxd7 {[%clk 0:01:04]} 19. Rxd7 {[%clk 0:01:08]}  Rad8 {[%clk 0:01:02]} 20. Rxd8 {[%clk 0:00:51]}  Rxd8 {[%clk 0:01:02]} 21. Bf1 {[%clk 0:00:47]}  Qc6 {[%clk 0:00:56]} 22. Qe3 {[%clk 0:00:38]}  h6 {[%clk 0:00:51]} 23. Nfd4 {[%clk 0:00:38]}  Qc5 {[%clk 0:00:48]} 24. h4 {[%clk 0:00:34]}  Nc6 {[%clk 0:00:28]} 25. Nxc6 {[%clk 0:00:32]}  Qxe3 {[%clk 0:00:27]} 26. fxe3 {[%clk 0:00:25]}  bxc6 {[%clk 0:00:27]} 27. Nd4 {[%clk 0:00:24]}  Rc8 {[%clk 0:00:18]} 28. Bc4 {[%clk 0:00:22]}  e5 {[%clk 0:00:15]} 29. Nf5 {[%clk 0:00:21]}  Kf8 {[%clk 0:00:13]} 30. Nd6 {[%clk 0:00:21]}  Rc7 {[%clk 0:00:14]} 31. Kf2 {[%clk 0:00:16]}  Rd7 {[%clk 0:00:13]} 32. Nc8 {[%clk 0:00:03]}  Rd2+ {[%clk 0:00:12]} 33. Kf3 {[%clk 0:00:03]}  Rc2 {[%clk 0:00:13]} 34. Nb6 {[%clk 0:00:03]}  Ke7 {[%clk 0:00:12]} 35. g4 {[%clk 0:00:03]}  Kd6 {[%clk 0:00:11]} 36. Bxf7 {[%clk 0:00:02]}  Kc5 {[%clk 0:00:10]} 37. Nd7+ {[%clk 0:00:02]}  Kd6 {[%clk 0:00:10]} 38. Nb6 {[%clk 0:00:02]}  Kc5 {[%clk 0:00:10]} 39. Nd7+ {[%clk 0:00:03]}  Kd6 {[%clk 0:00:10]} 40. Nb6 {[%clk 0:00:03]} 1/2-1/2


[Site "https://www.chess.com"]

[Event "Titled Tuesday Blitz January 17 Early 2023"]
[White "Mamedov, Edgar"]
[Black "Dixit, Nikhil"]
[WhiteFideId "13739980"]
[BlackFideId "5059534"]
[WhiteElo "2193"]
[BlackElo "2257"]
[Result "1-0"]
[Round "04"]
[TimeControl "180+2"]
[Date "2023.01.17"]
[WhiteClock "0:00:26"]
[BlackClock "0:00:46"]

1. d4 {[%clk 0:02:59]}  Nf6 {[%clk 0:02:59]} 2. Bg5 {[%clk 0:02:59]}  g6 {[%clk 0:02:58]} 3. Bxf6 {[%clk 0:02:59]}  exf6 {[%clk 0:02:58]} 4. e3 {[%clk 0:02:59]}  f5 {[%clk 0:02:46]} 5. g3 {[%clk 0:02:58]}  h5 {[%clk 0:02:46]} 6. Nf3 {[%clk 0:02:56]}  h4 {[%clk 0:02:44]} 7. Nxh4 {[%clk 0:02:54]}  c5 {[%clk 0:02:45]} 8. Nf3 {[%clk 0:02:52]}  Bg7 {[%clk 0:02:42]} 9. Bg2 {[%clk 0:02:52]}  Qb6 {[%clk 0:02:39]} 10. Qc1 {[%clk 0:02:45]}  cxd4 {[%clk 0:02:32]} 11. Nxd4 {[%clk 0:02:43]}  Bxd4 {[%clk 0:02:19]} 12. exd4 {[%clk 0:02:43]}  Qxd4 {[%clk 0:02:19]} 13. O-O {[%clk 0:02:42]}  O-O {[%clk 0:02:19]} 14. Nc3 {[%clk 0:02:42]}  Nc6 {[%clk 0:02:09]} 15. Rd1 {[%clk 0:02:41]}  Qg7 {[%clk 0:02:08]} 16. Nd5 {[%clk 0:02:40]}  d6 {[%clk 0:02:04]} 17. c3 {[%clk 0:02:29]}  Be6 {[%clk 0:01:52]} 18. Qf4 {[%clk 0:02:28]}  Ne5 {[%clk 0:01:49]} 19. Ne7+ {[%clk 0:02:25]}  Kh8 {[%clk 0:01:42]} 20. Qh4+ {[%clk 0:02:17]}  Qh7 {[%clk 0:01:41]} 21. Qxh7+ {[%clk 0:01:53]}  Kxh7 {[%clk 0:01:40]} 22. Rxd6 {[%clk 0:01:46]}  Nc4 {[%clk 0:01:36]} 23. Rd4 {[%clk 0:01:41]}  Nxb2 {[%clk 0:01:30]} 24. Bxb7 {[%clk 0:01:40]}  Rab8 {[%clk 0:01:29]} 25. Bd5 {[%clk 0:01:37]}  Bxd5 {[%clk 0:01:24]} 26. Nxd5 {[%clk 0:01:36]}  Rfd8 {[%clk 0:01:22]} 27. Ne3 {[%clk 0:01:31]}  Rxd4 {[%clk 0:01:20]} 28. cxd4 {[%clk 0:01:32]}  Rd8 {[%clk 0:01:17]} 29. d5 {[%clk 0:01:31]}  Rd6 {[%clk 0:01:13]} 30. Rb1 {[%clk 0:01:30]}  Na4 {[%clk 0:01:10]} 31. Rb7 {[%clk 0:01:30]}  Kg7 {[%clk 0:01:05]} 32. Rxa7 {[%clk 0:01:29]}  Nc3 {[%clk 0:01:06]} 33. Ra5 {[%clk 0:01:28]}  Kf6 {[%clk 0:01:04]} 34. a3 {[%clk 0:01:25]}  g5 {[%clk 0:01:02]} 35. Kg2 {[%clk 0:01:14]}  f4 {[%clk 0:00:58]} 36. gxf4 {[%clk 0:01:14]}  gxf4 {[%clk 0:00:57]} 37. Nc4 {[%clk 0:01:14]}  Rxd5 {[%clk 0:00:54]} 38. Rxd5 {[%clk 0:01:14]}  Nxd5 {[%clk 0:00:55]} 39. Kf3 {[%clk 0:01:14]}  Kg5 {[%clk 0:00:51]} 40. a4 {[%clk 0:01:11]}  Nb4 {[%clk 0:00:51]} 41. a5 {[%clk 0:01:08]}  f6 {[%clk 0:00:50]} 42. h4+ {[%clk 0:01:03]}  Kxh4 {[%clk 0:00:48]} 43. Kxf4 {[%clk 0:01:03]}  Kh3 {[%clk 0:00:48]} 44. Ke4 {[%clk 0:00:49]}  Kg2 {[%clk 0:00:47]} 45. f4 {[%clk 0:00:48]}  Kg3 {[%clk 0:00:47]} 46. f5 {[%clk 0:00:47]}  Kg4 {[%clk 0:00:46]} 47. Ne3+ {[%clk 0:00:47]}  Kg5 {[%clk 0:00:46]} 48. Nd5 {[%clk 0:00:47]}  Na6 {[%clk 0:00:46]} 49. Ne7 {[%clk 0:00:40]}  Kg4 {[%clk 0:00:42]} 50. Kd5 {[%clk 0:00:39]}  Kf4 {[%clk 0:00:43]} 51. Kc6 {[%clk 0:00:34]}  Ke5 {[%clk 0:00:41]} 52. Kb6 {[%clk 0:00:29]}  Nb8 {[%clk 0:00:39]} 53. Nc6+ {[%clk 0:00:29]}  Nxc6 {[%clk 0:00:39]} 54. Kxc6 {[%clk 0:00:29]}  Kxf5 {[%clk 0:00:40]} 55. a6 {[%clk 0:00:29]}  Ke4 {[%clk 0:00:41]} 56. a7 {[%clk 0:00:29]}  f5 {[%clk 0:00:42]} 57. a8=Q {[%clk 0:00:29]}  f4 {[%clk 0:00:43]} 58. Kc5+ {[%clk 0:00:29]}  Ke3 {[%clk 0:00:43]} 59. Qe8+ {[%clk 0:00:28]}  Kf2 {[%clk 0:00:43]} 60. Kd4 {[%clk 0:00:28]}  f3 {[%clk 0:00:44]} 61. Qe3+ {[%clk 0:00:27]}  Kg2 {[%clk 0:00:44]} 62. Qg5+ {[%clk 0:00:27]}  Kh2 {[%clk 0:00:45]} 63. Ke3 {[%clk 0:00:26]}  f2 {[%clk 0:00:45]} 64. Kxf2 {[%clk 0:00:26]}  Kh1 {[%clk 0:00:46]} 65. Qg2# {[%clk 0:00:26]} 1-0


[Site "https://www.chess.com"]

[Event "Titled Tuesday Blitz January 17 Early 2023"]
[White "Tologon tegin, Semetei"]
[Black "Jaskolka, Tomasz"]
[WhiteFideId "13800574"]
[BlackFideId "1170791"]
[WhiteElo "2372"]
[BlackElo "2238"]
[Result "1-0"]
[Round "04"]
[TimeControl "180+2"]
[Date "2023.01.17"]
[WhiteClock "0:00:10"]
[BlackClock "0:00:05"]

1. Nf3 {[%clk 0:02:52]}  d5 {[%clk 0:02:59]} 2. g3 {[%clk 0:02:52]}  Nf6 {[%clk 0:02:58]} 3. Bg2 {[%clk 0:02:53]}  c6 {[%clk 0:02:58]} 4. O-O {[%clk 0:02:53]}  g6 {[%clk 0:02:58]} 5. b3 {[%clk 0:02:53]}  Bg7 {[%clk 0:02:59]} 6. Bb2 {[%clk 0:02:53]}  O-O {[%clk 0:02:59]} 7. c4 {[%clk 0:02:54]}  Bg4 {[%clk 0:02:58]} 8. d3 {[%clk 0:02:54]}  e6 {[%clk 0:02:59]} 9. Nbd2 {[%clk 0:02:54]}  Bxf3 {[%clk 0:02:59]} 10. Nxf3 {[%clk 0:02:54]}  Nbd7 {[%clk 0:02:59]} 11. Rc1 {[%clk 0:02:54]}  a5 {[%clk 0:02:58]} 12. a3 {[%clk 0:02:53]}  Re8 {[%clk 0:02:49]} 13. Qc2 {[%clk 0:02:48]}  Qb6 {[%clk 0:02:37]} 14. Bc3 {[%clk 0:02:33]}  e5 {[%clk 0:02:22]} 15. cxd5 {[%clk 0:02:21]}  cxd5 {[%clk 0:02:20]} 16. e3 {[%clk 0:02:04]}  a4 {[%clk 0:02:06]} 17. b4 {[%clk 0:02:01]}  Qb5 {[%clk 0:02:03]} 18. Rfd1 {[%clk 0:01:59]}  Rac8 {[%clk 0:02:03]} 19. Qb2 {[%clk 0:01:59]}  Ng4 {[%clk 0:01:28]} 20. h3 {[%clk 0:01:53]}  Nh6 {[%clk 0:01:29]} 21. Qa2 {[%clk 0:01:05]}  Nf5 {[%clk 0:01:25]} 22. e4 {[%clk 0:00:55]}  Ne7 {[%clk 0:01:17]} 23. exd5 {[%clk 0:00:19]}  Nxd5 {[%clk 0:01:14]} 24. Bb2 {[%clk 0:00:16]}  N5b6 {[%clk 0:01:09]} 25. Ng5 {[%clk 0:00:15]}  Rf8 {[%clk 0:00:58]} 26. Rxc8 {[%clk 0:00:15]}  Nxc8 {[%clk 0:00:58]} 27. Bd5 {[%clk 0:00:15]}  Nd6 {[%clk 0:00:56]} 28. Bc4 {[%clk 0:00:14]}  Qc6 {[%clk 0:00:54]} 29. b5 {[%clk 0:00:13]}  Qc5 {[%clk 0:00:49]} 30. Rc1 {[%clk 0:00:13]}  Qb6 {[%clk 0:00:42]} 31. Bc3 {[%clk 0:00:13]}  Nxc4 {[%clk 0:00:38]} 32. Qxc4 {[%clk 0:00:12]}  h6 {[%clk 0:00:38]} 33. Ne4 {[%clk 0:00:12]}  Kh7 {[%clk 0:00:30]} 34. Bb4 {[%clk 0:00:12]}  Rd8 {[%clk 0:00:30]} 35. Qxf7 {[%clk 0:00:11]}  Qxb5 {[%clk 0:00:23]} 36. Nd6 {[%clk 0:00:10]}  Qxd3 {[%clk 0:00:18]} 37. Qe7 {[%clk 0:00:11]}  e4 {[%clk 0:00:06]} 38. Qxd8 {[%clk 0:00:10]}  e3 {[%clk 0:00:07]} 39. Rf1 {[%clk 0:00:07]}  exf2+ {[%clk 0:00:04]} 40. Kg2 {[%clk 0:00:07]}  Qd5+ {[%clk 0:00:05]} 41. Kh2 {[%clk 0:00:06]}  Qd4 {[%clk 0:00:04]} 42. Qh4 {[%clk 0:00:05]}  Qd5 {[%clk 0:00:02]} 43. Rxf2 {[%clk 0:00:05]}  Ne5 {[%clk 0:00:03]} 44. Qf4 {[%clk 0:00:05]}  Nd3 {[%clk 0:00:02]} 45. Qd2 {[%clk 0:00:05]}  Qd4 {[%clk 0:00:01]} 46. Rg2 {[%clk 0:00:05]}  Qd5 {[%clk 0:00:01]} 47. Qe2 {[%clk 0:00:05]}  Nxb4 {[%clk 0:00:02]} 48. axb4 {[%clk 0:00:04]}  Qxd6 {[%clk 0:00:02]} 49. Qc4 {[%clk 0:00:04]}  Qd7 {[%clk 0:00:01]} 50. b5 {[%clk 0:00:04]}  b6 {[%clk 0:00:01]} 51. h4 {[%clk 0:00:05]}  Qd6 {[%clk 0:00:01]} 52. Re2 {[%clk 0:00:05]}  Bf6 {[%clk 0:00:02]} 53. Qe4 {[%clk 0:00:05]}  h5 {[%clk 0:00:02]} 54. Qb7+ {[%clk 0:00:04]}  Kh6 {[%clk 0:00:02]} 55. Qc6 {[%clk 0:00:05]}  Qxc6 {[%clk 0:00:02]} 56. bxc6 {[%clk 0:00:05]}  Bd8 {[%clk 0:00:03]} 57. Rd2 {[%clk 0:00:05]}  Bc7 {[%clk 0:00:03]} 58. Rd7 {[%clk 0:00:05]}  Be5 {[%clk 0:00:02]} 59. c7 {[%clk 0:00:05]}  a3 {[%clk 0:00:02]} 60. c8=Q {[%clk 0:00:05]}  a2 {[%clk 0:00:02]} 61. Ra7 {[%clk 0:00:05]}  a1=Q {[%clk 0:00:02]} 62. Qf8+ {[%clk 0:00:05]}  Bg7 {[%clk 0:00:02]} 63. Qf4+ {[%clk 0:00:05]}  g5 {[%clk 0:00:02]} 64. Qxg5+ {[%clk 0:00:05]}  Kh7 {[%clk 0:00:03]} 65. Rxa1 {[%clk 0:00:05]}  Bxa1 {[%clk 0:00:03]} 66. Qxh5+ {[%clk 0:00:05]}  Kg8 {[%clk 0:00:04]} 67. Qg6+ {[%clk 0:00:05]}  Bg7 {[%clk 0:00:05]} 68. Qxb6 {[%clk 0:00:06]}  Kh7 {[%clk 0:00:05]} 69. Qb3 {[%clk 0:00:06]}  Kh6 {[%clk 0:00:05]} 70. Kh3 {[%clk 0:00:07]}  Bf6 {[%clk 0:00:05]} 71. g4 {[%clk 0:00:08]}  Kg6 {[%clk 0:00:05]} 72. g5 {[%clk 0:00:09]}  Be5 {[%clk 0:00:05]} 73. Kg4 {[%clk 0:00:09]}  Bd6 {[%clk 0:00:05]} 74. h5+ {[%clk 0:00:10]}  Kh7 {[%clk 0:00:06]} 75. Qb7+ {[%clk 0:00:10]}  Kh8 {[%clk 0:00:05]} 76. Kf5 {[%clk 0:00:11]}  Bf8 {[%clk 0:00:06]} 77. h6 {[%clk 0:00:12]}  Kg8 {[%clk 0:00:06]} 78. Kg6 {[%clk 0:00:10]}  Kh8 {[%clk 0:00:05]} 79. Qh7# {[%clk 0:00:10]} 1-0


[Site "https://www.chess.com"]

[Event "Titled Tuesday Blitz January 17 Early 2023"]
[White "Fernandez Garcia, Gumersindo"]
[Black "Guliev, Logman"]
[WhiteFideId "24516740"]
[BlackFideId "13400061"]
[WhiteElo "2160"]
[BlackElo "2250"]
[Result "0-1"]
[Round "04"]
[TimeControl "180+2"]
[Date "2023.01.17"]
[WhiteClock "0:00:15"]
[BlackClock "0:00:13"]

1. e4 {[%clk 0:03:00]}  e5 {[%clk 0:02:57]} 2. Nf3 {[%clk 0:03:00]}  Nc6 {[%clk 0:02:57]} 3. d4 {[%clk 0:03:00]}  exd4 {[%clk 0:02:56]} 4. Bc4 {[%clk 0:03:00]}  Nf6 {[%clk 0:02:56]} 5. O-O {[%clk 0:02:57]}  Nxe4 {[%clk 0:02:56]} 6. Re1 {[%clk 0:02:55]}  d5 {[%clk 0:02:57]} 7. Bxd5 {[%clk 0:02:55]}  Qxd5 {[%clk 0:02:58]} 8. Nc3 {[%clk 0:02:55]}  Qa5 {[%clk 0:02:58]} 9. Rxe4+ {[%clk 0:02:38]}  Be6 {[%clk 0:02:44]} 10. Nxd4 {[%clk 0:02:29]}  O-O-O {[%clk 0:02:29]} 11. Be3 {[%clk 0:02:21]}  Bf5 {[%clk 0:02:10]} 12. Rf4 {[%clk 0:02:16]}  Nxd4 {[%clk 0:02:02]} 13. Rxd4 {[%clk 0:02:13]}  Bc5 {[%clk 0:01:57]} 14. Rxd8+ {[%clk 0:02:12]}  Rxd8 {[%clk 0:01:56]} 15. Qe2 {[%clk 0:01:41]}  Bxe3 {[%clk 0:01:53]} 16. fxe3 {[%clk 0:01:38]}  Qe5 {[%clk 0:01:51]} 17. Rf1 {[%clk 0:01:35]}  g6 {[%clk 0:01:45]} 18. h3 {[%clk 0:01:35]}  h5 {[%clk 0:01:44]} 19. e4 {[%clk 0:01:29]}  Be6 {[%clk 0:01:41]} 20. a3 {[%clk 0:01:24]}  Rd4 {[%clk 0:01:38]} 21. Qf2 {[%clk 0:01:18]}  a6 {[%clk 0:01:30]} 22. Kh1 {[%clk 0:01:14]}  Qd6 {[%clk 0:01:24]} 23. Qe3 {[%clk 0:00:54]}  Rd2 {[%clk 0:01:19]} 24. Rf2 {[%clk 0:00:54]}  Rd4 {[%clk 0:01:07]} 25. Rf1 {[%clk 0:00:53]}  Qd7 {[%clk 0:00:59]} 26. Rf2 {[%clk 0:00:50]}  Bc4 {[%clk 0:00:42]} 27. Qf3 {[%clk 0:00:36]}  Kb8 {[%clk 0:00:37]} 28. Qe3 {[%clk 0:00:35]}  b6 {[%clk 0:00:34]} 29. b3 {[%clk 0:00:34]}  Be6 {[%clk 0:00:30]} 30. a4 {[%clk 0:00:34]}  Qd6 {[%clk 0:00:28]} 31. Rf1 {[%clk 0:00:34]}  Qc5 {[%clk 0:00:26]} 32. Rf2 {[%clk 0:00:21]}  Qe5 {[%clk 0:00:26]} 33. Rf1 {[%clk 0:00:18]}  f5 {[%clk 0:00:26]} 34. Re1 {[%clk 0:00:16]}  f4 {[%clk 0:00:26]} 35. Qf3 {[%clk 0:00:16]}  Rd2 {[%clk 0:00:23]} 36. Re2 {[%clk 0:00:16]}  Rd4 {[%clk 0:00:19]} 37. Re1 {[%clk 0:00:16]}  g5 {[%clk 0:00:18]} 38. Rd1 {[%clk 0:00:16]}  g4 {[%clk 0:00:17]} 39. hxg4 {[%clk 0:00:16]}  hxg4 {[%clk 0:00:18]} 40. Qe2 {[%clk 0:00:16]}  f3 {[%clk 0:00:18]} 41. gxf3 {[%clk 0:00:16]}  gxf3 {[%clk 0:00:18]} 42. Qxf3 {[%clk 0:00:16]}  Ka7 {[%clk 0:00:17]} 43. Rxd4 {[%clk 0:00:16]}  Qxd4 {[%clk 0:00:18]} 44. Nd1 {[%clk 0:00:17]}  Qd2 {[%clk 0:00:13]} 45. Nf2 {[%clk 0:00:15]}  Qxc2 {[%clk 0:00:13]} 46. e5 {[%clk 0:00:15]}  Qxb3 {[%clk 0:00:12]} 47. Qxb3 {[%clk 0:00:15]}  Bxb3 {[%clk 0:00:12]} 48. a5 {[%clk 0:00:15]}  bxa5 {[%clk 0:00:12]} 49. Nd3 {[%clk 0:00:15]}  a4 {[%clk 0:00:12]} 50. Nc5 {[%clk 0:00:15]}  Bc2 {[%clk 0:00:12]} 51. e6 {[%clk 0:00:15]}  a3 {[%clk 0:00:13]} 52. e7 {[%clk 0:00:15]}  Bg6 {[%clk 0:00:13]} 53. Kg2 {[%clk 0:00:15]}  a2 {[%clk 0:00:13]} 54. Nb3 {[%clk 0:00:16]}  a5 {[%clk 0:00:14]} 55. Kf2 {[%clk 0:00:15]}  a4 {[%clk 0:00:14]} 56. Na1 {[%clk 0:00:15]}  Kb7 {[%clk 0:00:15]} 57. Ke3 {[%clk 0:00:16]}  Kc8 {[%clk 0:00:15]} 58. Kd4 {[%clk 0:00:16]}  Kd7 {[%clk 0:00:16]} 59. Kc3 {[%clk 0:00:16]}  Kxe7 {[%clk 0:00:17]} 60. Kb4 {[%clk 0:00:17]}  Kd6 {[%clk 0:00:15]} 61. Kxa4 {[%clk 0:00:17]}  Bf7 {[%clk 0:00:16]} 62. Ka3 {[%clk 0:00:18]}  Kc5 {[%clk 0:00:16]} 63. Kb2 {[%clk 0:00:18]}  Kb4 {[%clk 0:00:17]} 64. Nc2+ {[%clk 0:00:19]}  Ka4 {[%clk 0:00:17]} 65. Na1 {[%clk 0:00:19]}  Be6 {[%clk 0:00:17]} 66. Nc2 {[%clk 0:00:19]}  Bb3 {[%clk 0:00:18]} 67. Nd4 {[%clk 0:00:19]}  Bc4 {[%clk 0:00:15]} 68. Nf5 {[%clk 0:00:18]}  Kb4 {[%clk 0:00:12]} 69. Ne3 {[%clk 0:00:17]}  Be6 {[%clk 0:00:11]} 70. Nc2+ {[%clk 0:00:18]}  Kc5 {[%clk 0:00:11]} 71. Ne3 {[%clk 0:00:18]}  Kd4 {[%clk 0:00:11]} 72. Nc2+ {[%clk 0:00:18]}  Kd3 {[%clk 0:00:12]} 73. Nb4+ {[%clk 0:00:17]}  Kd2 {[%clk 0:00:12]} 74. Na6 {[%clk 0:00:17]}  c6 {[%clk 0:00:12]} 75. Nc5 {[%clk 0:00:18]}  Bd5 {[%clk 0:00:12]} 76. Nd7 {[%clk 0:00:17]}  Kd3 {[%clk 0:00:12]} 77. Ka1 {[%clk 0:00:15]}  Kc3 {[%clk 0:00:11]} 78. Nb6 {[%clk 0:00:14]}  Be6 {[%clk 0:00:09]} 79. Na4+ {[%clk 0:00:12]}  Kb4 {[%clk 0:00:10]} 80. Nb6 {[%clk 0:00:12]}  c5 {[%clk 0:00:10]} 81. Kb2 {[%clk 0:00:12]}  Kb5 {[%clk 0:00:08]} 82. Na8 {[%clk 0:00:12]}  Kc6 {[%clk 0:00:08]} 83. Ka1 {[%clk 0:00:09]}  Kb7 {[%clk 0:00:08]} 84. Nc7 {[%clk 0:00:08]}  Kxc7 {[%clk 0:00:08]} 85. Kb2 {[%clk 0:00:08]}  Kc6 {[%clk 0:00:09]} 86. Ka1 {[%clk 0:00:09]}  Kb5 {[%clk 0:00:09]} 87. Kb2 {[%clk 0:00:10]}  Kc4 {[%clk 0:00:10]} 88. Ka1 {[%clk 0:00:11]}  Kd3 {[%clk 0:00:11]} 89. Kb2 {[%clk 0:00:12]}  Kd2 {[%clk 0:00:11]} 90. Ka1 {[%clk 0:00:12]}  c4 {[%clk 0:00:12]} 91. Kb2 {[%clk 0:00:13]}  c3+ {[%clk 0:00:12]} 92. Ka1 {[%clk 0:00:14]}  c2 {[%clk 0:00:13]} 93. Kb2 {[%clk 0:00:15]}  c1=Q# {[%clk 0:00:13]} 0-1


[Site "https://www.chess.com"]